bitfinex-derivatives/quotes_SOLF0:USTF0_20240823
["timestamp","ask_amount","ask_price","bid_price","bid_amount"]
[1724425913424,34.7501,143.72,143.66,3.4796]
[1724425913629,34.7501,143.72,143.63,33.38]
[1724425913630,1.3701,143.72,143.65,33.38]
[1724425914134,1.3701,143.72,143.66,3.4797]
[1724425914526,0.04456352,143.7,143.68,0.04632869]
[1724425917434,33.42456352,143.7,143.68,0.04632869]
[1724425917827,3.479,143.69,143.68,0.04632869]
[1724425918332,33.42456352,143.7,143.62,3.39598037]
[1724425918333,33.38,143.7,143.62,3.39598037]
[1724425918524,33.38,143.7,143.59,33.38]
[1724425918731,1.3207,143.71,143.61,33.38]
[1724425918933,34.7007,143.71,143.61,33.38]
[1724425919128,34.7007,143.71,143.65,0.05210924]
[1724425919434,0.04743666,143.67,143.65,3.44611404]
[1724425919629,0.04743666,143.67,143.65,0.05210924]
[1724425920037,0.04743666,143.67,143.66,3.4797]
[1724425921236,0.04743666,143.67,143.65,0.05210924]
[1724425922137,122.29409049,143.9,143.66,33.38]
[1724425922138,1.2823,143.79,143.66,33.38]
[1724425922334,3.4774,143.76,143.7,33.38]
[1724425922641,2.6393,143.79,143.75,33.38]
[1724425922941,2.6393,143.79,143.75,36.8573]
[1724425923236,6.1161,143.79,143.73,36.8578]
[1724425923439,0.04884789,143.78,143.76,0.05037665]
[1724425923833,0.04884789,143.78,143.71,33.38]
[1724425924041,2.6393,143.79,143.71,33.38]
[1724425924234,2.6393,143.79,143.65,262.38]
[1724425924235,3.4773,143.76,143.7,3.4786]
[1724425924435,36.0193,143.79,143.69,33.38]
[1724425924739,3.4782,143.73,143.67,3.4792]
[1724425924939,2.6393,143.79,143.67,3.4792]
[1724425924940,33.38,143.77,143.67,33.38]
[1724425925133,0.05257646,143.71,143.69,0.05349146]
[1724425925332,0.05152421,143.71,143.69,0.05349146]
[1724425925532,0.05152421,143.71,143.69,36.91229146]
[1724425925737,0.05152421,143.71,143.69,33.43349146]
[1724425925942,2.6393,143.79,143.69,33.43349146]
[1724425926141,3.477,143.78,143.72,36.858]
[1724425926533,2.6393,143.79,143.71,36.90992769]
[1724425926738,2.6393,143.79,143.71,33.38]
[1724425926931,2.6393,143.79,143.73,33.38]
[1724425927138,0.04480719,143.76,143.74,3.52739125]
[1724425927338,0.04480719,143.76,143.74,6.94988787]
[1724425927636,0.04480719,143.76,143.74,3.47218787]
[1724425927841,0.04480719,143.76,143.75,3.4775]
[1724425928033,0.04480719,143.76,143.74,0.04969125]
[1724425928744,0.04480719,143.76,143.74,3.52729125]
[1724425928944,0.04480719,143.76,143.74,0.04969125]
[1724425929943,3.52230719,143.76,143.74,0.04969125]
[1724425930244,0.04480719,143.76,143.74,0.04969125]
[1724425933048,0.04480719,143.76,143.74,3.52729125]
[1724425933445,0.04480719,143.76,143.74,0.04969125]
[1724425933644,3.52220719,143.76,143.74,0.04969125]
[1724425933844,0.04480719,143.76,143.74,0.04969125]
[1724425935052,0.04480719,143.76,143.74,3.52739125]
[1724425935550,0.04480719,143.76,143.74,0.04969125]
[1724425936052,0.04480719,143.76,143.74,3.52739125]
[1724425936441,0.04480719,143.76,143.74,0.04969125]
[1724425936642,0.04480719,143.76,143.75,3.4775]
[1724425937846,0.04480719,143.76,143.74,0.04969125]
[1724425941652,3.52220719,143.76,143.74,0.04969125]
[1724425942251,0.04480719,143.76,143.74,0.04969125]
[1724425942754,0.04480719,143.76,143.75,3.4775]
[1724425942949,0.04480719,143.76,143.74,0.04969125]
[1724425943346,0.04480719,143.76,143.74,3.52739125]
[1724425943558,0.04480719,143.76,143.74,33.42969125]
[1724425943947,0.04480719,143.76,143.75,3.4775]
[1724425944148,2.594,143.83,143.74,33.38]
[1724425944455,2.594,143.83,143.8,33.38]
[1724425944648,2.594,143.83,143.78,33.38]
[1724425945049,3.4761,143.81,143.76,36.79808102]
[1724425945244,0.04690204,143.8,143.77,0.05335686]
[1724425946255,0.04690204,143.8,143.77,3.53025686]
[1724425947058,0.04690204,143.8,143.78,3.4768]
[1724425947255,0.04690204,143.8,143.77,0.05335686]
[1724425947661,0.04690204,143.8,143.78,3.4766]
[1724425948463,0.04690204,143.8,143.78,3.4768]
[1724425948855,0.04690204,143.8,143.78,33.38]
[1724425949053,0.04690204,143.8,143.79,3.4766]
[1724425949362,0.04690204,143.8,143.78,33.38]
[1724425949660,0.04690204,143.8,143.79,3.4766]
[1724425950456,0.04690204,143.8,143.77,0.05335686]
[1724425950960,0.04690204,143.8,143.78,3.4766]
[1724425951557,3.4766,143.79,143.77,0.05335686]
[1724425951760,0.04690204,143.8,143.77,0.05335686]
[1724425952169,3.52340204,143.8,143.77,0.05335686]
[1724425952356,0.04690204,143.8,143.77,0.05335686]
[1724425952561,0.04690204,143.8,143.72,33.38]
[1724425952954,3.4769,143.78,143.72,33.38]
[1724425953466,2.594,143.83,143.74,33.38]
[1724425953666,2.594,143.83,143.68,1.3813]
[1724425953667,3.4762,143.81,143.77,3.4769]
[1724425954158,0.0455843,143.8,143.78,0.04879911]
[1724425954360,0.0455843,143.8,143.78,33.42879911]
[1724425954765,0.0455843,143.8,143.78,36.90539911]
[1724425955059,0.0455843,143.8,143.78,0.04879911]
[1724425955266,0.0455843,143.8,143.78,3.52549911]
[1724425955859,27.82,143.95,143.79,33.38]
[1724425956054,34.7403,143.91,143.81,33.38]
[1724425956256,3.475,143.86,143.81,3.4759]
[1724425956459,33.38,143.88,143.77,33.38]
[1724425957061,33.38,143.88,143.81,0.04648729]
[1724425957062,0.05348016,143.83,143.81,0.04648729]
[1724425957259,0.05348016,143.83,143.82,3.4758]
[1724425957459,0.05348016,143.83,143.81,0.04648729]
[1724425957964,0.05348016,143.83,143.73,34.7099]
[1724425958168,36.78460917,143.84,143.73,34.7099]
[1724425958169,38.08010917,143.84,143.73,34.7099]
[1724425958362,3.476,143.82,143.78,3.4768]
[1724425958965,0.04779208,143.81,143.79,0.0511866]
[1724425959568,0.04779208,143.81,143.79,3.5276866]
[1724425959769,0.04779208,143.81,143.79,0.0511866]
[1724425960169,3.52399208,143.81,143.79,0.0511866]
[1724425960369,0.04779208,143.81,143.79,0.0511866]
[1724425961661,0.04779208,143.81,143.79,3.5275866]
[1724425961971,0.04779208,143.81,143.79,0.0511866]
[1724425963668,0.04779208,143.81,143.8,3.4763]
[1724425965866,0.04779208,143.81,143.79,0.0511866]
[1724425966371,0.04779208,143.81,143.79,3.5276866]
[1724425967068,3.4763,143.8,143.71,3.4784]
[1724425967368,3.44328451,143.8,143.72,3.41062039]
[1724425967563,36.8561,143.81,143.71,33.38]
[1724425967768,1.2955,143.84,143.73,33.38]
[1724425967964,3.45162428,143.83,143.73,33.38]
[1724425968171,3.45162428,143.83,143.75,33.38]
[1724425968369,0.04630538,143.79,143.77,0.0500779]
[1724425969071,0.04630538,143.79,143.78,3.4767]
[1724425969879,0.04630538,143.79,143.78,7.0210473]
[1724425970664,0.04630538,143.79,143.78,3.4767]
[1724425971261,0.04630538,143.79,143.77,0.0500779]
[1724425972763,2.83840538,143.79,143.77,0.0500779]
[1724425973968,3.4768,143.78,143.77,0.0500779]
[1724425974168,33.38,143.78,143.68,34.74]
[1724425974377,33.38,143.78,143.59,3.22501205]
[1724425974378,1.3938,143.77,143.66,33.38]
[1724425974975,3.4776,143.75,143.71,3.4785]
[1724425975178,0.05045884,143.74,143.72,0.05345277]
[1724425975778,0.05045884,143.74,143.73,3.478]
[1724425976879,0.05045884,143.74,143.72,0.05345277]
[1724425977275,0.05045884,143.74,143.73,3.478]
[1724425977577,0.05045884,143.74,143.72,0.05345277]
[1724425978481,3.52845884,143.74,143.72,0.05345277]
[1724425978980,3.52825884,143.74,143.72,0.05345277]
[1724425979376,0.05045884,143.74,143.72,0.05345277]
[1724425979679,3.478,143.73,143.72,0.05345277]
[1724425980074,3.478,143.73,143.69,3.4788]
[1724425980386,0.05045884,143.74,143.67,3.49074547]
[1724425980580,0.05045884,143.74,143.65,33.38]
[1724425980880,3.4778,143.74,143.67,33.38]
[1724425981180,0.04949381,143.72,143.7,3.4785]
[1724425981482,0.0485828,143.72,143.68,3.54954351]
[1724425981784,0.0485828,143.72,143.7,3.4786]
[1724425982372,0.0485828,143.72,143.68,3.54954351]
[1724425982580,0.0485828,143.72,143.71,36.8585]
[1724425982973,1.3681,143.77,143.75,3.4774]
[1724425984074,1.41885815,143.77,143.75,3.52124063]
[1724425984276,3.4773,143.76,143.75,0.04384063]
[1724425984578,1.3681,143.77,143.67,36.86243321]
[1724425985290,1.3681,143.77,143.73,3.4779]
[1724425985582,0.04713001,143.76,143.67,36.86243321]
[1724425985781,0.04813021,143.73,143.68,33.38]
[1724425985979,0.04813021,143.73,143.72,3.4783]
[1724425987776,0.04813021,143.73,143.67,36.86243321]
[1724425987984,0.04813021,143.73,143.67,33.38]
[1724425988279,0.04813021,143.73,143.71,3.4783]
[1724425988477,0.05356811,143.73,143.69,33.38]
[1724425988778,0.05356811,143.73,143.71,33.38]
[1724425988978,4.8453,143.77,143.73,3.4779]
[1724425989184,0.04890198,143.76,143.73,3.4779]
[1724425989476,0.04890198,143.76,143.73,3.4778]
[1724425989678,0.04890198,143.76,143.71,33.38]
[1724425989878,0.04890198,143.76,143.73,33.38]
[1724425990079,0.04890198,143.76,143.75,3.4775]
[1724425993877,2.7481,143.83,143.74,33.38]
[1724425994078,1.3586,143.83,143.79,33.38]
[1724425994279,4.87548308,143.87,143.79,33.38]
[1724425994485,1.4112,143.86,143.81,3.4761]
[1724425994982,0.04642741,143.85,143.82,0.05066811]
[1724425995378,0.04642741,143.85,143.84,3.4754]
[1724425995885,0.04642741,143.85,143.82,0.05066811]
[1724425996087,0.04642741,143.85,143.84,3.4754]
[1724425998987,0.04642741,143.85,143.82,0.05066811]
[1724425998988,0.04642741,143.85,143.83,3.4755]
[1724425999484,0.04642741,143.85,143.82,0.05066811]
[1724425999683,0.04642741,143.85,143.83,3.4756]
[1724426000296,0.04642741,143.85,143.84,3.4754]
[1724426004711,0.04642741,143.85,143.82,0.05066811]
[1724426005399,0.04642741,143.85,143.84,3.4754]
[1724426009510,27.9806,143.94,143.87,3.4744]
[1724426009511,1.4001,143.93,143.87,3.4744]
[1724426009900,1.4001,143.93,143.8,26.68]
[1724426009901,1.4001,143.93,143.85,26.68]
[1724426010308,4.8734,143.93,143.85,26.68]
[1724426010619,0.04958314,143.9,143.89,3.4739]
[1724426013908,0.04958314,143.9,143.88,0.05251865]
[1724426014109,0.04958314,143.9,143.88,3.52681865]
[1724426014321,0.04958314,143.9,143.88,0.05251865]
[1724426015222,0.04958314,143.9,143.89,3.4742]
[1724426015422,26.72958314,143.9,143.88,0.05251865]
[1724426016315,3.52358314,143.9,143.88,0.05251865]
[1724426016620,0.04958314,143.9,143.88,0.05251865]
[1724426017218,0.04958314,143.9,143.89,3.4742]
[1724426017519,0.04958314,143.9,143.89,30.1542]
[1724426018116,0.04958314,143.9,143.89,3.4742]
[1724426020417,0.04958314,143.9,143.88,0.05251865]
[1724426020923,0.04958314,143.9,143.88,3.52671865]
[1724426021124,0.04958314,143.9,143.88,0.05251865]
[1724426021926,0.04958314,143.9,143.89,3.4742]
[1724426022518,0.04958314,143.9,143.88,3.52691865]
[1724426023218,0.04958314,143.9,143.88,0.05251865]
[1724426023618,3.52348314,143.9,143.88,0.05251865]
[1724426023819,0.04958314,143.9,143.88,0.05251865]
[1724426024821,3.4742,143.89,143.88,0.05251865]
[1724426025626,3.52358314,143.9,143.88,0.05251865]
[1724426026125,3.4742,143.89,143.88,0.05251865]
[1724426028223,0.04958314,143.9,143.88,0.05251865]
[1724426028224,3.52358314,143.9,143.88,0.05251865]
[1724426028416,0.04958314,143.9,143.88,0.05251865]
[1724426028816,3.52368314,143.9,143.88,0.05251865]
[1724426029621,0.04958314,143.9,143.88,3.52681865]
[1724426029923,0.04958314,143.9,143.88,0.05251865]
[1724426030429,0.04958314,143.9,143.89,3.4742]
[1724426034936,0.04958314,143.9,143.88,0.05251865]
[1724426035624,0.04958314,143.9,143.88,3.52681865]
[1724426037929,0.04958314,143.9,143.89,3.4742]
[1724426040726,2.7148,143.95,143.93,3.4732]
[1724426040933,1.368,143.95,143.91,26.68]
[1724426041328,1.368,143.95,143.93,3.4732]
[1724426041539,30.07634098,144.0,143.91,26.68]
[1724426041831,0.04618246,143.97,143.94,0.0524844]
[1724426042428,3.51848246,143.97,143.94,0.0524844]
[1724426043234,0.04618246,143.97,143.95,26.68]
[1724426043833,0.04618246,143.97,143.96,3.4725]
[1724426044741,4.8777,144.04,143.95,26.68]
[1724426044742,1.4071,144.04,144.0,3.4714]
[1724426044941,1.4071,144.04,143.99,26.68]
[1724426045141,1.3692,144.08,144.03,26.68]
[1724426045543,1.3692,144.08,144.05,26.68]
[1724426045841,0.04767348,144.08,144.06,3.4699]
[1724426046248,0.04767348,144.08,144.05,30.19893501]
[1724426046539,0.04767348,144.08,144.05,26.72863501]
[1724426046743,0.04767348,144.08,144.05,0.04863501]
[1724426047846,0.04767348,144.08,144.05,3.51873501]
[1724426048656,0.04767348,144.08,144.07,26.68]
[1724426048870,6.19039947,144.15,144.07,26.68]
[1724426049156,6.19039947,144.15,144.1,30.149]
[1724426049348,2.6459,144.15,144.1,30.149]
[1724426049947,2.6459,144.15,144.11,0.05004466]
[1724426049948,0.04447249,144.14,144.11,0.05004466]
[1724426050157,0.04447249,144.14,144.11,3.51884466]
[1724426050661,0.04447249,144.14,144.11,26.73004466]
[1724426050954,0.04447249,144.14,144.12,3.4686]
[1724426052257,0.04447249,144.14,144.11,3.51884466]
[1724426052757,0.04447249,144.14,144.11,0.05004466]
[1724426054257,0.04447249,144.14,144.12,3.4685]
[1724426054853,0.04447249,144.14,144.11,3.51884466]
[1724426056457,0.04447249,144.14,144.11,26.73004466]
[1724426056655,0.04447249,144.14,144.11,0.05004466]
[1724426056960,0.04447249,144.14,144.12,3.4684]
[1724426059056,0.04447249,144.14,144.11,3.51884466]
[1724426059255,26.72447249,144.14,144.11,3.51884466]
[1724426059452,26.72447249,144.14,144.11,0.05004466]
[1724426059663,26.72447249,144.14,144.11,3.51884466]
[1724426060055,26.72447249,144.14,144.11,0.05004466]
[1724426061062,0.04447249,144.14,144.11,0.05004466]
[1724426062061,0.04447249,144.14,144.12,3.4684]
[1724426063460,0.04447249,144.14,144.11,0.05004466]
[1724426063853,26.72447249,144.14,144.11,0.05004466]
[1724426064062,0.04447249,144.14,144.12,3.4686]
[1724426064865,0.04447249,144.14,144.13,3.4684]
[1724426073169,0.04447249,144.14,144.11,0.05004466]
[1724426073170,0.04447249,144.14,144.12,3.4686]
[1724426073964,0.04447249,144.14,144.13,3.4684]
[1724426077472,0.04447249,144.14,144.12,3.4685]
[1724426077671,0.04447249,144.14,144.11,0.05004466]
[1724426078071,0.04447249,144.14,144.13,3.4684]
[1724426079075,0.04447249,144.14,144.12,3.4686]
[1724426079273,0.04447249,144.14,144.11,0.05004466]
[1724426079780,0.04447249,144.14,144.11,3.51884466]
[1724426079981,0.04447249,144.14,144.11,0.05004466]
[1724426081279,0.04447249,144.14,144.12,3.4685]
[1724426082182,0.04447249,144.14,144.11,3.51884466]
[1724426082381,0.04447249,144.14,144.11,0.05004466]
[1724426082882,0.04447249,144.14,144.11,3.51884466]
[1724426083082,3.51267249,144.14,144.11,3.51884466]
[1724426083278,0.04447249,144.14,144.11,3.51884466]
[1724426083579,0.04447249,144.14,144.11,0.05004466]
[1724426083981,0.04447249,144.14,144.12,3.4685]
[1724426084379,0.04447249,144.14,144.11,0.05004466]
[1724426085180,0.04447249,144.14,144.11,3.51874466]
[1724426085381,0.04447249,144.14,144.11,0.05004466]
[1724426085573,3.4686,144.12,144.11,0.05004466]
[1724426086186,4.8465,144.12,144.11,0.05004466]
[1724426086780,1.3779,144.12,144.11,0.05004466]
[1724426087690,3.51267249,144.14,144.11,0.05004466]
[1724426087691,0.04447249,144.14,144.11,0.05004466]
[1724426088085,0.04447249,144.14,144.11,3.51894466]
[1724426088588,3.51267249,144.14,144.11,0.05004466]
[1724426089490,3.51267249,144.14,144.11,3.51894466]
[1724426089688,0.04447249,144.14,144.11,3.51894466]
[1724426089991,0.04447249,144.14,144.12,3.4686]
[1724426090686,0.04447249,144.14,144.11,0.05004466]
[1724426090991,0.04447249,144.14,144.13,3.4684]
[1724426095187,3.4669,144.2,144.11,26.68]
[1724426095687,3.4669,144.2,144.16,3.4675]
[1724426096483,3.51472121,144.19,144.17,0.04746206]
[1724426096882,3.4672,144.18,144.17,0.04746206]
[1724426097585,3.4672,144.18,144.09,2.7441]
[1724426097586,26.68,144.16,144.09,2.7441]
[1724426097984,3.4672,144.18,144.1,26.68]
[1724426097985,26.68,144.18,144.1,26.68]
[1724426098197,26.68,144.18,144.1,30.1024483]
[1724426098395,3.467,144.19,144.11,26.68]
[1724426098605,30.1468,144.2,144.13,0.05122317]
[1724426098792,0.04623733,144.16,144.14,3.46508591]
[1724426098991,0.04623733,144.16,144.13,26.73122317]
[1724426099191,0.04623733,144.16,144.15,3.4679]
[1724426099395,0.04623733,144.16,144.15,6.88410865]
[1724426099797,0.04623733,144.16,144.15,3.4679]
[1724426102189,26.72623733,144.16,144.13,0.05122317]
[1724426102395,0.04623733,144.16,144.13,0.05122317]
[1724426102690,26.68,144.14,144.13,0.05122317]
[1724426103894,0.04623733,144.16,144.13,0.05122317]
[1724426104695,26.72623733,144.16,144.13,0.05122317]
[1724426105198,26.68,144.14,144.13,0.05122317]
[1724426106386,3.51393733,144.16,144.13,0.05122317]
[1724426106999,3.4679,144.15,144.13,0.05122317]
[1724426107594,0.04623733,144.16,144.13,0.05122317]
[1724426108295,26.68,144.15,144.13,0.05122317]
[1724426108696,3.4681,144.14,144.13,0.05122317]
[1724426109203,30.1481,144.15,144.13,0.05122317]
[1724426109503,26.68,144.15,144.13,0.05122317]
[1724426109994,3.4681,144.14,144.13,0.05122317]
[1724426110295,26.68,144.15,144.13,0.05122317]
[1724426110500,3.4681,144.14,144.13,0.05122317]
[1724426110996,2.82843733,144.16,144.13,0.05122317]
[1724426111395,26.68,144.14,144.13,0.05122317]
[1724426111598,26.68,144.14,144.04,1.4164]
[1724426111893,30.79663733,144.16,144.04,1.4164]
[1724426111894,30.1486,144.13,144.09,3.4693]
[1724426112099,26.68,144.13,144.04,28.0964]
[1724426112600,0.05008002,144.1,144.07,0.05338016]
[1724426114099,0.05008002,144.1,144.09,3.4693]
[1724426114598,6.25,144.16,144.12,3.4685]
[1724426115600,0.04488219,144.15,144.13,0.04791467]
[1724426115901,0.04783062,144.15,144.13,0.0508496]
[1724426116097,0.04783062,144.15,144.14,3.4681]
[1724426117202,30.1465,144.21,144.16,3.4675]
[1724426117396,3.4665,144.21,144.16,3.4675]
[1724426117796,3.4667,144.2,144.16,3.4675]
[1724426117992,0.0515621,144.19,144.17,0.04635555]
[1724426118602,3.5185621,144.19,144.17,0.04635555]
[1724426119003,0.0515621,144.19,144.17,0.04635555]
[1724426120793,0.0515621,144.19,144.18,3.4672]
[1724426121907,0.0515621,144.19,144.17,0.04635555]
[1724426122604,0.0515621,144.19,144.17,3.51375555]
[1724426122999,0.0515621,144.19,144.17,0.04635555]
[1724426124107,2.797,144.26,144.17,26.72635555]
[1724426124405,2.797,144.26,144.17,26.68]
[1724426124799,26.68,144.29,144.19,26.68]
[1724426125198,0.04859535,144.25,144.23,0.04670859]
[1724426125398,0.04947278,144.25,144.23,0.04670859]
[1724426125796,26.72947278,144.25,144.23,0.04670859]
[1724426126302,3.4657,144.24,144.23,0.04670859]
[1724426126605,3.4657,144.24,144.14,26.68]
[1724426126606,27.9602,144.24,144.14,26.68]
[1724426126802,26.68,144.22,144.14,26.68]
[1724426127193,3.4669,144.2,144.16,3.4675]
[1724426127700,0.05208877,144.19,144.17,0.04930448]
[1724426128505,3.51908877,144.19,144.17,0.04930448]
[1724426129194,0.05208877,144.19,144.17,3.51670448]
[1724426129604,0.05208877,144.19,144.17,0.04930448]
[1724426129802,0.05208877,144.19,144.18,3.4672]
[1724426129998,4.7461,144.24,144.18,3.4672]
[1724426129999,1.2802,144.24,144.18,33.28]
[1724426130305,1.2896,144.27,144.18,33.28]
[1724426130306,3.4653,144.26,144.18,33.28]
[1724426130500,1.2896,144.27,144.18,33.28]
[1724426130904,4.7548,144.27,144.22,3.466]
[1724426131102,0.04388261,144.24,144.22,6.96675201]
[1724426131901,0.04388261,144.24,144.21,0.04450449]
[1724426132400,0.04388261,144.24,144.22,3.466]
[1724426132598,0.04388261,144.24,144.21,3.43676439]
[1724426132999,0.04388261,144.24,144.22,3.4662]
[1724426133198,0.04388261,144.24,144.21,36.71676439]
[1724426133403,0.04388261,144.24,144.23,36.746]
[1724426134000,2.7773,144.3,144.27,3.4649]
[1724426134201,2.7773,144.3,144.23,33.28]
[1724426134799,98.13180526,144.36,144.25,33.28]
[1724426134999,98.13180526,144.36,144.29,0.04579153]
[1724426135000,0.0505505,144.32,144.29,0.04579153]
[1724426136512,3.4643,144.3,144.29,0.04579153]
[1724426137308,3.4641,144.31,144.29,0.04579153]
[1724426137706,0.0505505,144.32,144.29,0.04579153]
[1724426138005,0.0505505,144.32,144.29,3.44206399]
[1724426138208,0.0505505,144.32,144.29,0.04579153]
[1724426138408,0.0505505,144.32,144.3,3.4641]
[1724426138798,0.0505505,144.32,144.29,0.04579153]
[1724426139311,3.5143505,144.32,144.29,0.04579153]
[1724426140000,0.0505505,144.32,144.29,3.51029153]
[1724426140410,0.0505505,144.32,144.29,6.92687378]
[1724426141109,0.0505505,144.32,144.3,3.4643]
[1724426142106,3.5144505,144.32,144.29,3.51029153]
[1724426142311,3.5144505,144.32,144.29,0.04579153]
[1724426143405,33.28,144.31,144.21,4.6721599]
[1724426143604,33.28,144.31,144.21,37.9521599]
[1724426143805,33.28,144.31,144.21,4.6721599]
[1724426144010,33.28,144.29,144.21,3.3922599]
[1724426144204,33.28,144.29,144.19,34.639]
[1724426144406,1.3105,144.28,144.21,33.28]
[1724426144600,1.3105,144.28,144.19,4.79877737]
[1724426144601,0.05124703,144.25,144.23,33.33149967]
[1724426145005,0.05124703,144.25,144.24,3.4657]
[1724426146209,0.05124703,144.25,144.23,0.05149967]
[1724426146807,0.05124703,144.25,144.23,3.51729967]
[1724426147209,0.05124703,144.25,144.23,0.05149967]
[1724426147711,3.51684703,144.25,144.23,0.05149967]
[1724426147915,0.05124703,144.25,144.23,0.05149967]
[1724426148103,0.05124703,144.25,144.23,3.51729967]
[1724426148708,0.05124703,144.25,144.23,0.05149967]
[1724426152009,4.02467436,144.5,144.23,0.05149967]
[1724426152216,3.4644,144.3,144.27,33.28]
[1724426152414,1.3935,144.34,144.24,33.28]
[1724426152612,33.28,144.33,144.22,33.28]
[1724426152819,3.4647,144.29,144.22,33.28]
[1724426153015,3.4647,144.29,144.24,0.05271649]
[1724426153216,0.05232113,144.27,144.24,3.51841649]
[1724426153417,4.7913,144.28,144.24,3.4657]
[1724426153721,0.04594792,144.27,144.24,3.51368257]
[1724426154222,3.51104792,144.27,144.24,0.04798257]
[1724426154412,0.04594792,144.27,144.24,0.04798257]
[1724426154818,0.04594792,144.27,144.24,3.51358257]
[1724426155221,0.04594792,144.27,144.24,0.04798257]
[1724426155628,0.04594792,144.27,144.24,33.32798257]
[1724426156316,0.04594792,144.27,144.26,3.4653]
[1724426157924,0.04594792,144.27,144.26,36.7453]
[1724426158128,0.04594792,144.27,144.26,3.4653]
[1724426161120,1.416,144.32,144.31,3.4641]
[1724426161319,1.416,144.32,144.29,26.58]
[1724426161519,3.4635,144.34,144.29,26.58]
[1724426162014,0.0531822,144.33,144.32,26.58]
[1724426162215,4.82576037,144.41,144.35,3.4629]
[1724426162422,1.3728,144.41,144.35,3.4629]
[1724426162722,1.3728,144.41,144.37,0.04872548]
[1724426162723,33.28222557,144.39,144.37,0.04872548]
[1724426162915,1.2805,144.38,144.37,0.04816534]
[1724426163116,0.04408322,144.39,144.37,3.51076534]
[1724426163318,0.04408322,144.39,144.38,33.23]
[1724426163623,33.23,144.51,144.4,3.4618]
[1724426163826,1.3728,144.47,144.4,33.23]
[1724426164722,1.3728,144.47,144.4,36.6917]
[1724426164944,0.04510031,144.45,144.42,0.0487683]
[1724426165124,33.23,144.44,144.35,33.23]
[1724426165328,1.2958,144.43,144.34,33.23]
[1724426165622,4.71853562,144.43,144.34,33.23]
[1724426165816,4.71853562,144.43,144.34,36.61952197]
[1724426166020,4.71853562,144.43,144.34,33.23]
[1724426166219,0.05076828,144.4,144.37,0.05034731]
[1724426169930,0.05076828,144.4,144.38,3.4624]
[1724426170230,0.05076828,144.4,144.37,0.05034731]
[1724426173031,0.05076828,144.4,144.38,33.23]
[1724426173227,0.05076828,144.4,144.38,36.6925]
[1724426173533,0.05076828,144.4,144.37,0.05034731]
[1724426175533,33.28076828,144.4,144.37,0.05034731]
[1724426175727,1.3035,144.39,144.31,3.46787454]
[1724426175927,3.4626,144.38,144.33,3.4637]
[1724426176134,3.4626,144.38,144.32,3.4091433]
[1724426176332,3.4626,144.38,144.33,3.4635]
[1724426176740,4.8775,144.37,144.3,33.23]
[1724426177040,1.45867863,144.37,144.34,0.05238371]
[1724426179231,1.45867863,144.37,144.34,3.51568371]
[1724426179438,1.45867863,144.37,144.34,0.05238371]
[1724426179743,0.04397863,144.37,144.36,33.23]
[1724426179951,1.3687,144.43,144.36,33.23]
[1724426180547,1.3687,144.43,144.34,33.23]
[1724426181047,0.04603506,144.4,144.37,0.05057731]
[1724426181252,0.04603506,144.4,144.38,3.4625]
[1724426182346,0.04603506,144.4,144.37,0.05057731]
[1724426183049,0.04603506,144.4,144.38,3.4625]
[1724426183444,0.04603506,144.4,144.37,0.05057731]
[1724426184045,3.50823506,144.4,144.37,0.05057731]
[1724426184250,0.04603506,144.4,144.37,0.05057731]
[1724426184443,0.04603506,144.4,144.33,3.4635]
[1724426184444,3.4627,144.38,144.33,3.4635]
[1724426184949,2.7053,144.43,144.32,3.5388669]
[1724426185252,2.7053,144.43,144.35,33.23]
[1724426185451,0.05177732,144.4,144.38,0.05123751]
[1724426185649,3.51397732,144.4,144.38,0.05123751]
[1724426186352,0.05177732,144.4,144.38,0.05123751]
[1724426187253,3.51387732,144.4,144.38,0.05123751]
[1724426187551,0.05177732,144.4,144.38,0.05123751]
[1724426188250,3.4625,144.38,144.33,33.23]
[1724426188448,35.9353,144.43,144.33,33.23]
[1724426188649,33.23,144.41,144.31,33.23]
[1724426189062,33.23,144.41,144.34,3.4634]
[1724426189063,3.4625,144.38,144.34,3.4634]
[1724426189255,1.3628,144.37,144.34,3.4634]
[1724426189552,1.3628,144.37,144.35,0.04552022]
[1724426189553,1.41354642,144.37,144.35,0.04552022]
[1724426189948,4.87634642,144.37,144.35,0.04552022]